[Event "Titled Tuesday Blitz January 10 Early 2023"]
[White "Becerra, Juan David"]
[Black "Harshal, Shahi"]
[WhiteFideId "4404998"]
[BlackFideId "5048257"]
[WhiteElo "2382"]
[BlackElo "2146"]
[Result "1-0"]
[Round "06"]
[TimeControl "180+2"]
[Date "2023.01.10"]
[WhiteClock "0:01:16"]
[BlackClock "0:01:28"]

1. e4 {[%clk 0:02:43]}  c5 {[%clk 0:02:59]} 2. d4 {[%clk 0:02:43]}  cxd4 {[%clk 0:02:59]} 3. c3 {[%clk 0:02:43]}  d3 {[%clk 0:02:58]} 4. Bxd3 {[%clk 0:02:43]}  g6 {[%clk 0:02:58]} 5. Nf3 {[%clk 0:02:41]}  Bg7 {[%clk 0:02:59]} 6. O-O {[%clk 0:02:42]}  Nc6 {[%clk 0:02:59]} 7. Bc4 {[%clk 0:02:42]}  d6 {[%clk 0:02:58]} 8. Qb3 {[%clk 0:02:43]}  e6 {[%clk 0:02:56]} 9. Rd1 {[%clk 0:02:43]}  Qc7 {[%clk 0:02:32]} 10. Na3 {[%clk 0:02:36]}  a6 {[%clk 0:02:30]} 11. Bf4 {[%clk 0:02:27]}  e5 {[%clk 0:02:21]} 12. Be3 {[%clk 0:02:26]}  Nf6 {[%clk 0:02:16]} 13. Bb6 {[%clk 0:02:19]}  Qe7 {[%clk 0:02:15]} 14. Re1 {[%clk 0:02:03]}  O-O {[%clk 0:02:08]} 15. Rad1 {[%clk 0:01:58]}  Bg4 {[%clk 0:02:06]} 16. Rd3 {[%clk 0:01:56]}  Rac8 {[%clk 0:02:01]} 17. Nd2 {[%clk 0:01:52]}  Nd7 {[%clk 0:01:54]} 18. Nf1 {[%clk 0:01:48]}  h6 {[%clk 0:01:42]} 19. Ne3 {[%clk 0:01:47]}  Be6 {[%clk 0:01:41]} 20. Nd5 {[%clk 0:01:46]}  Bxd5 {[%clk 0:01:41]} 21. Bxd5 {[%clk 0:01:44]}  Kh7 {[%clk 0:01:38]} 22. Nc4 {[%clk 0:01:38]}  f5 {[%clk 0:01:34]} 23. Nxd6 {[%clk 0:01:37]}  Nxb6 {[%clk 0:01:33]} 24. Qxb6 {[%clk 0:01:35]}  Rc7 {[%clk 0:01:31]} 25. exf5 {[%clk 0:01:20]}  gxf5 {[%clk 0:01:29]} 26. Nxf5 {[%clk 0:01:20]}  Rxf5 {[%clk 0:01:27]} 27. Be4 {[%clk 0:01:20]}  Qg5 {[%clk 0:01:28]} 28. Qxc7 {[%clk 0:01:16]} 1-0


[Site "https://www.chess.com"]

[Event "Titled Tuesday Blitz January 10 Early 2023"]
[White "Kaplan, Avi Harrison"]
[Black "Blokhin, Sofia"]
[WhiteFideId "30934559"]
[BlackFideId "4508190"]
[WhiteElo "2146"]
[BlackElo "2062"]
[Result "1-0"]
[Round "06"]
[TimeControl "180+2"]
[Date "2023.01.10"]
[WhiteClock "0:00:10"]
[BlackClock "0:00:29"]

1. g3 {[%clk 0:03:00]}  g6 {[%clk 0:02:58]} 2. Bg2 {[%clk 0:03:01]}  Bg7 {[%clk 0:02:58]} 3. d4 {[%clk 0:02:59]}  f5 {[%clk 0:02:58]} 4. e4 {[%clk 0:02:57]}  fxe4 {[%clk 0:02:56]} 5. Bxe4 {[%clk 0:02:57]}  Nf6 {[%clk 0:02:57]} 6. Bg2 {[%clk 0:02:57]}  O-O {[%clk 0:02:56]} 7. Nf3 {[%clk 0:02:56]}  d6 {[%clk 0:02:56]} 8. O-O {[%clk 0:02:56]}  Nc6 {[%clk 0:02:56]} 9. Re1 {[%clk 0:02:52]}  Bg4 {[%clk 0:02:54]} 10. c3 {[%clk 0:02:47]}  e5 {[%clk 0:02:47]} 11. Qb3+ {[%clk 0:02:41]}  Kh8 {[%clk 0:02:45]} 12. Qxb7 {[%clk 0:02:28]}  Qd7 {[%clk 0:02:05]} 13. dxe5 {[%clk 0:02:14]}  Rab8 {[%clk 0:01:49]} 14. Qa6 {[%clk 0:02:05]}  Nxe5 {[%clk 0:01:43]} 15. Nxe5 {[%clk 0:01:58]}  dxe5 {[%clk 0:01:43]} 16. Be3 {[%clk 0:01:53]}  Nd5 {[%clk 0:01:37]} 17. Bc5 {[%clk 0:01:43]}  Rf6 {[%clk 0:01:34]} 18. Qxa7 {[%clk 0:01:38]}  Re8 {[%clk 0:01:22]} 19. Nd2 {[%clk 0:01:21]}  Nf4 {[%clk 0:01:14]} 20. Ne4 {[%clk 0:01:04]}  Nxg2 {[%clk 0:01:13]} 21. Nxf6 {[%clk 0:01:04]}  Bxf6 {[%clk 0:01:09]} 22. Re4 {[%clk 0:00:32]}  Qd5 {[%clk 0:01:05]} 23. Rxg4 {[%clk 0:00:27]}  Rd8 {[%clk 0:00:52]} 24. Qxc7 {[%clk 0:00:23]}  Rd7 {[%clk 0:00:45]} 25. Qc8+ {[%clk 0:00:22]}  Rd8 {[%clk 0:00:45]} 26. Qc7 {[%clk 0:00:22]}  Rd7 {[%clk 0:00:45]} 27. Qb6 {[%clk 0:00:22]}  Bd8 {[%clk 0:00:41]} 28. Qb4 {[%clk 0:00:18]}  Kg7 {[%clk 0:00:35]} 29. Bf8+ {[%clk 0:00:18]}  Kg8 {[%clk 0:00:35]} 30. Bh6 {[%clk 0:00:18]}  Be7 {[%clk 0:00:34]} 31. Qb8+ {[%clk 0:00:18]}  Rd8 {[%clk 0:00:34]} 32. Qa7 {[%clk 0:00:17]}  Rd7 {[%clk 0:00:34]} 33. Qa4 {[%clk 0:00:14]}  Qf3 {[%clk 0:00:31]} 34. Qxd7 {[%clk 0:00:12]}  Bc5 {[%clk 0:00:29]} 35. Qg7# {[%clk 0:00:10]} 1-0


[Site "https://www.chess.com"]

[Event "Titled Tuesday Blitz January 10 Early 2023"]
[White "Slovineanu, Viacheslav"]
[Black "Tania, Sachdev"]
[WhiteFideId "13900510"]
[BlackFideId "5007844"]
[WhiteElo "2412"]
[BlackElo "2389"]
[Result "0-1"]
[Round "06"]
[TimeControl "180+2"]
[Date "2023.01.10"]
[WhiteClock "0:00:01"]
[BlackClock "0:00:41"]

1. e4 {[%clk 0:03:00]}  e5 {[%clk 0:02:58]} 2. Nf3 {[%clk 0:03:00]}  Nc6 {[%clk 0:02:59]} 3. Bb5 {[%clk 0:03:00]}  a6 {[%clk 0:02:59]} 4. Ba4 {[%clk 0:03:00]}  Nf6 {[%clk 0:02:59]} 5. Bxc6 {[%clk 0:03:01]}  dxc6 {[%clk 0:02:58]} 6. Qe2 {[%clk 0:03:01]}  Bd6 {[%clk 0:02:48]} 7. d3 {[%clk 0:03:00]}  O-O {[%clk 0:02:47]} 8. Nbd2 {[%clk 0:03:00]}  Nd7 {[%clk 0:02:38]} 9. Nc4 {[%clk 0:02:58]}  b5 {[%clk 0:02:31]} 10. Ne3 {[%clk 0:02:56]}  Nc5 {[%clk 0:02:28]} 11. g3 {[%clk 0:02:06]}  Ne6 {[%clk 0:02:15]} 12. Nf5 {[%clk 0:02:02]}  c5 {[%clk 0:02:15]} 13. h3 {[%clk 0:01:55]}  Nd4 {[%clk 0:02:09]} 14. N3xd4 {[%clk 0:01:42]}  cxd4 {[%clk 0:02:10]} 15. Qh5 {[%clk 0:00:52]}  g6 {[%clk 0:01:40]} 16. Nh6+ {[%clk 0:00:50]}  Kg7 {[%clk 0:01:38]} 17. Qf3 {[%clk 0:00:49]}  Qf6 {[%clk 0:01:32]} 18. Qxf6+ {[%clk 0:00:33]}  Kxf6 {[%clk 0:01:32]} 19. Ng4+ {[%clk 0:00:16]}  Kg7 {[%clk 0:01:32]} 20. Ke2 {[%clk 0:00:15]}  Re8 {[%clk 0:01:13]} 21. f4 {[%clk 0:00:10]}  exf4 {[%clk 0:01:09]} 22. Bxf4 {[%clk 0:00:08]}  f5 {[%clk 0:01:05]} 23. Nf2 {[%clk 0:00:07]}  Bb7 {[%clk 0:01:04]} 24. Kf3 {[%clk 0:00:05]}  Rf8 {[%clk 0:00:48]} 25. Bxd6 {[%clk 0:00:02]}  cxd6 {[%clk 0:00:48]} 26. Ke2 {[%clk 0:00:01]}  Rae8 {[%clk 0:00:46]} 27. Rhf1 {[%clk 0:00:01]}  d5 {[%clk 0:00:41]} 0-1


[Site "https://www.chess.com"]

[Event "Titled Tuesday Blitz January 10 Early 2023"]
[White "Thiel, Thomas"]
[Black "Rian, Kapriaga"]
[WhiteFideId "4615964"]
[BlackFideId "7103263"]
[WhiteElo "2234"]
[BlackElo "2089"]
[Result "1-0"]
[Round "06"]
[TimeControl "180+2"]
[Date "2023.01.10"]
[WhiteClock "0:00:54"]
[BlackClock "0:00:01"]

1. e4 {[%clk 0:03:00]}  c6 {[%clk 0:02:59]} 2. d4 {[%clk 0:02:57]}  d5 {[%clk 0:02:58]} 3. exd5 {[%clk 0:02:58]}  cxd5 {[%clk 0:02:58]} 4. c4 {[%clk 0:02:58]}  Nf6 {[%clk 0:02:57]} 5. Nc3 {[%clk 0:02:58]}  Nc6 {[%clk 0:02:57]} 6. Bg5 {[%clk 0:02:57]}  e6 {[%clk 0:02:51]} 7. c5 {[%clk 0:02:52]}  Be7 {[%clk 0:02:50]} 8. Nf3 {[%clk 0:02:50]}  h6 {[%clk 0:02:49]} 9. Bxf6 {[%clk 0:02:49]}  Bxf6 {[%clk 0:02:48]} 10. Bb5 {[%clk 0:02:47]}  O-O {[%clk 0:02:47]} 11. Bxc6 {[%clk 0:02:45]}  bxc6 {[%clk 0:02:46]} 12. O-O {[%clk 0:02:45]}  Rb8 {[%clk 0:02:44]} 13. b3 {[%clk 0:02:44]}  Qa5 {[%clk 0:02:43]} 14. Qd2 {[%clk 0:02:38]}  Re8 {[%clk 0:02:28]} 15. Nxd5 {[%clk 0:02:33]}  Qxd2 {[%clk 0:02:09]} 16. Nxf6+ {[%clk 0:02:33]}  gxf6 {[%clk 0:02:09]} 17. Nxd2 {[%clk 0:02:33]}  Rd8 {[%clk 0:02:07]} 18. Nf3 {[%clk 0:02:30]}  Ba6 {[%clk 0:02:06]} 19. Rfe1 {[%clk 0:02:22]}  Bd3 {[%clk 0:02:05]} 20. Rad1 {[%clk 0:02:18]}  Bf5 {[%clk 0:02:03]} 21. h3 {[%clk 0:02:18]}  Bg6 {[%clk 0:01:59]} 22. Rc1 {[%clk 0:02:12]}  Rb4 {[%clk 0:01:54]} 23. Rc4 {[%clk 0:02:10]}  Rxc4 {[%clk 0:01:54]} 24. bxc4 {[%clk 0:02:11]}  Rb8 {[%clk 0:01:53]} 25. d5 {[%clk 0:01:59]}  exd5 {[%clk 0:01:52]} 26. cxd5 {[%clk 0:01:59]}  cxd5 {[%clk 0:01:51]} 27. Nd4 {[%clk 0:01:58]}  Kf8 {[%clk 0:01:39]} 28. c6 {[%clk 0:01:51]}  Be4 {[%clk 0:01:38]} 29. f3 {[%clk 0:01:50]}  Bd3 {[%clk 0:01:35]} 30. Rc1 {[%clk 0:01:43]}  Bc4 {[%clk 0:01:34]} 31. Re1 {[%clk 0:01:38]}  Rc8 {[%clk 0:01:28]} 32. a3 {[%clk 0:01:34]}  Rb8 {[%clk 0:01:21]} 33. Kf2 {[%clk 0:01:33]}  h5 {[%clk 0:01:18]} 34. Kg3 {[%clk 0:01:31]}  Rc8 {[%clk 0:00:56]} 35. Kh4 {[%clk 0:01:31]}  a5 {[%clk 0:00:25]} 36. Kxh5 {[%clk 0:01:29]}  a4 {[%clk 0:00:22]} 37. Kg4 {[%clk 0:01:29]}  Rc7 {[%clk 0:00:17]} 38. Kf4 {[%clk 0:01:28]}  Rc8 {[%clk 0:00:17]} 39. h4 {[%clk 0:01:29]}  Rc7 {[%clk 0:00:16]} 40. g4 {[%clk 0:01:28]}  Rc8 {[%clk 0:00:15]} 41. h5 {[%clk 0:01:29]}  Bd3 {[%clk 0:00:15]} 42. Ke3 {[%clk 0:01:25]}  Bc4 {[%clk 0:00:14]} 43. Kd2 {[%clk 0:01:24]}  Kg7 {[%clk 0:00:12]} 44. Kc3 {[%clk 0:01:23]}  Kh6 {[%clk 0:00:12]} 45. Kb4 {[%clk 0:01:23]}  Kg5 {[%clk 0:00:11]} 46. Kc5 {[%clk 0:01:22]}  Kf4 {[%clk 0:00:10]} 47. Kd6 {[%clk 0:01:23]}  Kg3 {[%clk 0:00:09]} 48. c7 {[%clk 0:01:21]}  Kf4 {[%clk 0:00:08]} 49. Kd7 {[%clk 0:01:20]}  Ba6 {[%clk 0:00:08]} 50. Rb1 {[%clk 0:01:10]}  f5 {[%clk 0:00:07]} 51. gxf5 {[%clk 0:01:02]}  Ke3 {[%clk 0:00:06]} 52. Rb8 {[%clk 0:00:58]}  Kxd4 {[%clk 0:00:03]} 53. Rxc8 {[%clk 0:00:57]}  Ke3 {[%clk 0:00:01]} 54. Re8+ {[%clk 0:00:55]}  Kxf3 {[%clk 0:00:01]} 55. c8=Q {[%clk 0:00:54]} 1-0


[Site "https://www.chess.com"]

[Event "Titled Tuesday Blitz January 10 Early 2023"]
[White "Hernandez Bonilla, Amelia"]
[Black "Nugumanov, Bakhtiyar"]
[WhiteFideId "3900193"]
[BlackFideId "13701797"]
[WhiteElo "1960"]
[BlackElo "2316"]
[Result "1-0"]
[Round "06"]
[TimeControl "180+2"]
[Date "2023.01.10"]
[WhiteClock "0:00:13"]
[BlackClock "0:00:01"]

1. d4 {[%clk 0:03:00]}  Nf6 {[%clk 0:01:59]} 2. Nf3 {[%clk 0:02:55]}  e6 {[%clk 0:01:53]} 3. c4 {[%clk 0:02:53]}  c5 {[%clk 0:01:33]} 4. d5 {[%clk 0:02:40]}  exd5 {[%clk 0:01:33]} 5. cxd5 {[%clk 0:02:41]}  d6 {[%clk 0:01:34]} 6. Nc3 {[%clk 0:02:41]}  Be7 {[%clk 0:01:35]} 7. e4 {[%clk 0:02:39]}  O-O {[%clk 0:01:35]} 8. Be2 {[%clk 0:02:27]}  Bg4 {[%clk 0:01:32]} 9. O-O {[%clk 0:02:19]}  Nbd7 {[%clk 0:01:26]} 10. h3 {[%clk 0:02:10]}  Bh5 {[%clk 0:01:14]} 11. Re1 {[%clk 0:02:04]}  Re8 {[%clk 0:01:12]} 12. Bf4 {[%clk 0:01:55]}  Bf8 {[%clk 0:01:07]} 13. Nd2 {[%clk 0:01:40]}  Bxe2 {[%clk 0:01:06]} 14. Qxe2 {[%clk 0:01:41]}  Ne5 {[%clk 0:01:07]} 15. Bg3 {[%clk 0:01:25]}  a6 {[%clk 0:00:58]} 16. a4 {[%clk 0:01:24]}  Qc7 {[%clk 0:00:23]} 17. f4 {[%clk 0:01:10]}  Ng6 {[%clk 0:00:17]} 18. Nc4 {[%clk 0:01:07]}  Qd7 {[%clk 0:00:09]} 19. Qf3 {[%clk 0:01:01]}  Rab8 {[%clk 0:00:04]} 20. Rad1 {[%clk 0:00:52]}  b5 {[%clk 0:00:05]} 21. axb5 {[%clk 0:00:49]}  axb5 {[%clk 0:00:05]} 22. Na5 {[%clk 0:00:49]}  b4 {[%clk 0:00:04]} 23. e5 {[%clk 0:00:44]}  bxc3 {[%clk 0:00:04]} 24. exf6 {[%clk 0:00:40]}  cxb2 {[%clk 0:00:05]} 25. Nc6 {[%clk 0:00:38]}  Rb5 {[%clk 0:00:03]} 26. Rb1 {[%clk 0:00:31]}  Re4 {[%clk 0:00:02]} 27. Rxe4 {[%clk 0:00:30]}  gxf6 {[%clk 0:00:03]} 28. Re2 {[%clk 0:00:29]}  f5 {[%clk 0:00:04]} 29. Rexb2 {[%clk 0:00:28]}  Rxb2 {[%clk 0:00:04]} 30. Rxb2 {[%clk 0:00:29]}  Bg7 {[%clk 0:00:05]} 31. Rb1 {[%clk 0:00:28]}  Bf8 {[%clk 0:00:06]} 32. Qf2 {[%clk 0:00:27]}  Qe8 {[%clk 0:00:03]} 33. Qe1 {[%clk 0:00:24]}  Qd7 {[%clk 0:00:03]} 34. Qa5 {[%clk 0:00:22]}  h5 {[%clk 0:00:02]} 35. Qa6 {[%clk 0:00:19]}  h4 {[%clk 0:00:01]} 36. Bh2 {[%clk 0:00:17]}  Qe8 {[%clk 0:00:01]} 37. Qa5 {[%clk 0:00:15]}  Qe3+ {[%clk 0:00:01]} 38. Kh1 {[%clk 0:00:14]}  Nxf4 {[%clk 0:00:02]} 39. Bxf4 {[%clk 0:00:13]}  Qxf4 {[%clk 0:00:01]} 40. Qd8 {[%clk 0:00:13]} 1-0


[Site "https://www.chess.com"]

[Event "Titled Tuesday Blitz January 10 Early 2023"]
[White "Player, Edmund C"]
[Black "Sargissyan, Sargis"]
[WhiteFideId "406520"]
[BlackFideId "13303210"]
[WhiteElo "2204"]
[BlackElo "2234"]
[Result "1-0"]
[Round "06"]
[TimeControl "180+2"]
[Date "2023.01.10"]
[WhiteClock "0:00:12"]
[BlackClock "0:00:01"]

1. e4 {[%clk 0:03:00]}  c5 {[%clk 0:02:58]} 2. Nf3 {[%clk 0:03:00]}  d6 {[%clk 0:02:59]} 3. d4 {[%clk 0:02:58]}  cxd4 {[%clk 0:03:00]} 4. Nxd4 {[%clk 0:02:58]}  Nf6 {[%clk 0:03:00]} 5. Nc3 {[%clk 0:02:59]}  a6 {[%clk 0:03:01]} 6. h3 {[%clk 0:02:59]}  e6 {[%clk 0:02:59]} 7. g4 {[%clk 0:02:59]}  d5 {[%clk 0:02:59]} 8. Nde2 {[%clk 0:02:10]}  Bb4 {[%clk 0:02:35]} 9. Bg2 {[%clk 0:01:59]}  Nxe4 {[%clk 0:02:23]} 10. Bxe4 {[%clk 0:01:57]}  dxe4 {[%clk 0:02:23]} 11. Qxd8+ {[%clk 0:01:56]}  Kxd8 {[%clk 0:02:23]} 12. O-O {[%clk 0:01:52]}  Nc6 {[%clk 0:02:02]} 13. Nxe4 {[%clk 0:01:50]}  Ke7 {[%clk 0:01:45]} 14. Be3 {[%clk 0:01:45]}  f5 {[%clk 0:01:35]} 15. N4g3 {[%clk 0:01:17]}  fxg4 {[%clk 0:01:02]} 16. hxg4 {[%clk 0:01:17]}  e5 {[%clk 0:01:02]} 17. Nf5+ {[%clk 0:01:05]}  Bxf5 {[%clk 0:01:02]} 18. gxf5 {[%clk 0:01:06]}  Rhf8 {[%clk 0:01:00]} 19. Bg5+ {[%clk 0:00:58]}  Kf7 {[%clk 0:00:58]} 20. Rad1 {[%clk 0:00:42]}  Kg8 {[%clk 0:00:43]} 21. Ng3 {[%clk 0:00:36]}  h6 {[%clk 0:00:38]} 22. Be3 {[%clk 0:00:26]}  Ne7 {[%clk 0:00:14]} 23. a3 {[%clk 0:00:25]}  Ba5 {[%clk 0:00:11]} 24. Rd7 {[%clk 0:00:23]}  Nxf5 {[%clk 0:00:10]} 25. Rxb7 {[%clk 0:00:20]}  Nxe3 {[%clk 0:00:09]} 26. fxe3 {[%clk 0:00:21]}  Rxf1+ {[%clk 0:00:07]} 27. Kxf1 {[%clk 0:00:21]}  Rc8 {[%clk 0:00:07]} 28. c3 {[%clk 0:00:21]}  Re8 {[%clk 0:00:07]} 29. Ke2 {[%clk 0:00:18]}  g6 {[%clk 0:00:06]} 30. Ne4 {[%clk 0:00:18]}  Rf8 {[%clk 0:00:06]} 31. Ra7 {[%clk 0:00:15]}  h5 {[%clk 0:00:04]} 32. Rxa6 {[%clk 0:00:15]}  Bd8 {[%clk 0:00:04]} 33. Rxg6+ {[%clk 0:00:15]}  Kh7 {[%clk 0:00:04]} 34. Re6 {[%clk 0:00:14]}  Rf5 {[%clk 0:00:03]} 35. Re8 {[%clk 0:00:13]}  Bb6 {[%clk 0:00:01]} 36. Re6 {[%clk 0:00:12]} 1-0


[Site "https://www.chess.com"]

[Event "Titled Tuesday Blitz January 10 Early 2023"]
[White "Doluhanova, Evgeniya"]
[Black "Lauridsen, Jesper Morch"]
[WhiteFideId "14112035"]
[BlackFideId "1401890"]
[WhiteElo "2275"]
[BlackElo "2309"]
[Result "1-0"]
[Round "06"]
[TimeControl "180+2"]
[Date "2023.01.10"]
[WhiteClock "0:01:24"]
[BlackClock "0:01:29"]

1. Nf3 {[%clk 0:02:56]}  Nf6 {[%clk 0:02:56]} 2. g3 {[%clk 0:02:55]}  g6 {[%clk 0:02:55]} 3. Bg2 {[%clk 0:02:56]}  Bg7 {[%clk 0:02:56]} 4. O-O {[%clk 0:02:55]}  O-O {[%clk 0:02:56]} 5. d3 {[%clk 0:02:56]}  d5 {[%clk 0:02:54]} 6. c3 {[%clk 0:02:53]}  c5 {[%clk 0:02:53]} 7. Nbd2 {[%clk 0:02:54]}  Nc6 {[%clk 0:02:52]} 8. e4 {[%clk 0:02:54]}  dxe4 {[%clk 0:02:38]} 9. Nxe4 {[%clk 0:02:54]}  Nxe4 {[%clk 0:02:35]} 10. dxe4 {[%clk 0:02:52]}  Qxd1 {[%clk 0:02:35]} 11. Rxd1 {[%clk 0:02:52]}  Bg4 {[%clk 0:02:35]} 12. h3 {[%clk 0:02:49]}  Be6 {[%clk 0:02:24]} 13. Be3 {[%clk 0:02:48]}  b6 {[%clk 0:02:21]} 14. Rd2 {[%clk 0:02:46]}  Rfd8 {[%clk 0:02:18]} 15. Ng5 {[%clk 0:02:34]}  Rxd2 {[%clk 0:02:17]} 16. Bxd2 {[%clk 0:02:33]}  Rd8 {[%clk 0:02:15]} 17. Be3 {[%clk 0:02:12]}  Bc4 {[%clk 0:02:15]} 18. b3 {[%clk 0:02:11]}  Ba6 {[%clk 0:02:10]} 19. Rc1 {[%clk 0:02:10]}  Rd3 {[%clk 0:02:08]} 20. Bf1 {[%clk 0:02:06]}  Rxe3 {[%clk 0:02:04]} 21. fxe3 {[%clk 0:02:02]}  Bh6 {[%clk 0:02:02]} 22. Bxa6 {[%clk 0:01:57]}  Bxg5 {[%clk 0:02:02]} 23. Kf2 {[%clk 0:01:57]}  Ne5 {[%clk 0:02:02]} 24. Rd1 {[%clk 0:01:53]}  h5 {[%clk 0:01:59]} 25. Rd5 {[%clk 0:01:44]}  f6 {[%clk 0:01:54]} 26. Be2 {[%clk 0:01:40]}  h4 {[%clk 0:01:54]} 27. g4 {[%clk 0:01:39]}  Kf7 {[%clk 0:01:53]} 28. Rd8 {[%clk 0:01:38]}  Ke6 {[%clk 0:01:47]} 29. Ra8 {[%clk 0:01:37]}  Nc6 {[%clk 0:01:47]} 30. Bb5 {[%clk 0:01:34]}  Kd6 {[%clk 0:01:43]} 31. Bxc6 {[%clk 0:01:33]}  Kxc6 {[%clk 0:01:43]} 32. Rxa7 {[%clk 0:01:33]}  f5 {[%clk 0:01:38]} 33. exf5 {[%clk 0:01:31]}  gxf5 {[%clk 0:01:38]} 34. gxf5 {[%clk 0:01:32]}  b5 {[%clk 0:01:37]} 35. a4 {[%clk 0:01:28]}  b4 {[%clk 0:01:37]} 36. cxb4 {[%clk 0:01:28]}  cxb4 {[%clk 0:01:37]} 37. Kf3 {[%clk 0:01:27]}  Bf6 {[%clk 0:01:36]} 38. e4 {[%clk 0:01:27]}  Kc5 {[%clk 0:01:35]} 39. Rd7 {[%clk 0:01:25]}  Kc6 {[%clk 0:01:29]} 40. Rd5 {[%clk 0:01:24]} 1-0


[Site "https://www.chess.com"]

[Event "Titled Tuesday Blitz January 10 Early 2023"]
[White "Matveeva, Olga"]
[Black "Cardozo Munar, Carlos Eduardo"]
[WhiteFideId "24107018"]
[BlackFideId "4409477"]
[WhiteElo "2128"]
[BlackElo "2043"]
[Result "1/2-1/2"]
[Round "06"]
[TimeControl "180+2"]
[Date "2023.01.10"]
[WhiteClock "0:00:02"]
[BlackClock "0:00:07"]

1. d4 {[%clk 0:02:55]}  d5 {[%clk 0:02:59]} 2. c4 {[%clk 0:02:54]}  e5 {[%clk 0:02:59]} 3. dxe5 {[%clk 0:02:54]}  d4 {[%clk 0:03:00]} 4. Nf3 {[%clk 0:02:53]}  Nc6 {[%clk 0:03:00]} 5. a3 {[%clk 0:02:53]}  Nge7 {[%clk 0:03:00]} 6. e3 {[%clk 0:02:51]}  Bg4 {[%clk 0:02:59]} 7. Be2 {[%clk 0:02:47]}  dxe3 {[%clk 0:02:59]} 8. Bxe3 {[%clk 0:02:44]}  Qxd1+ {[%clk 0:02:59]} 9. Bxd1 {[%clk 0:02:43]}  Ng6 {[%clk 0:03:00]} 10. Nc3 {[%clk 0:02:38]}  Ngxe5 {[%clk 0:02:47]} 11. Nxe5 {[%clk 0:02:18]}  Nxe5 {[%clk 0:02:48]} 12. O-O {[%clk 0:02:15]}  Bxd1 {[%clk 0:02:44]} 13. Rfxd1 {[%clk 0:02:15]}  c6 {[%clk 0:02:30]} 14. b3 {[%clk 0:02:12]}  Be7 {[%clk 0:02:29]} 15. h3 {[%clk 0:02:07]}  O-O {[%clk 0:02:29]} 16. f4 {[%clk 0:02:02]}  Ng6 {[%clk 0:02:24]} 17. Kf2 {[%clk 0:02:01]}  Rad8 {[%clk 0:02:24]} 18. b4 {[%clk 0:02:00]}  Bf6 {[%clk 0:02:24]} 19. Rac1 {[%clk 0:01:46]}  a6 {[%clk 0:02:09]} 20. Na4 {[%clk 0:01:35]}  b5 {[%clk 0:01:49]} 21. cxb5 {[%clk 0:01:34]}  cxb5 {[%clk 0:01:50]} 22. Nc5 {[%clk 0:01:31]}  Bb2 {[%clk 0:01:50]} 23. Rb1 {[%clk 0:01:24]}  Rxd1 {[%clk 0:01:40]} 24. Rxd1 {[%clk 0:01:23]}  Bxa3 {[%clk 0:01:41]} 25. Nxa6 {[%clk 0:01:22]}  h6 {[%clk 0:01:14]} 26. Bc5 {[%clk 0:01:12]}  Ra8 {[%clk 0:01:12]} 27. Nc7 {[%clk 0:01:11]}  Ra4 {[%clk 0:01:12]} 28. Rb1 {[%clk 0:01:07]}  Nxf4 {[%clk 0:01:11]} 29. Nxb5 {[%clk 0:00:50]}  Bxb4 {[%clk 0:01:11]} 30. Be3 {[%clk 0:00:31]}  Nd5 {[%clk 0:00:59]} 31. Bd4 {[%clk 0:00:17]}  Kh7 {[%clk 0:00:43]} 32. Kf3 {[%clk 0:00:15]}  Ra5 {[%clk 0:00:35]} 33. Na7 {[%clk 0:00:13]}  Bc3 {[%clk 0:00:24]} 34. Bxc3 {[%clk 0:00:10]}  Rxa7 {[%clk 0:00:19]} 35. Bd4 {[%clk 0:00:10]}  Rd7 {[%clk 0:00:19]} 36. Bf2 {[%clk 0:00:09]}  Nf6 {[%clk 0:00:18]} 37. g4 {[%clk 0:00:07]}  g6 {[%clk 0:00:17]} 38. Rb3 {[%clk 0:00:06]}  h5 {[%clk 0:00:17]} 39. Ra3 {[%clk 0:00:05]}  hxg4+ {[%clk 0:00:17]} 40. hxg4 {[%clk 0:00:06]}  Rd3+ {[%clk 0:00:17]} 41. Rxd3 {[%clk 0:00:05]}  Kg7 {[%clk 0:00:16]} 42. Ra3 {[%clk 0:00:05]}  Nd5 {[%clk 0:00:16]} 43. Ke4 {[%clk 0:00:04]}  Nb4 {[%clk 0:00:15]} 44. Bd4+ {[%clk 0:00:04]}  Kh6 {[%clk 0:00:15]} 45. Kf4 {[%clk 0:00:02]}  Nd5+ {[%clk 0:00:14]} 46. Kg3 {[%clk 0:00:02]}  f5 {[%clk 0:00:07]} 47. Ra5 {[%clk 0:00:03]}  Ne7 {[%clk 0:00:06]} 48. Ra7 {[%clk 0:00:02]}  Nc6 {[%clk 0:00:06]} 49. Be3+ {[%clk 0:00:02]}  g5 {[%clk 0:00:06]} 50. Bd2 {[%clk 0:00:02]}  Nxa7 {[%clk 0:00:06]} 51. gxf5 {[%clk 0:00:01]}  Nb5 {[%clk 0:00:05]} 52. Kg4 {[%clk 0:00:01]}  Nd6 {[%clk 0:00:06]} 53. Bxg5+ {[%clk 0:00:02]}  Kg7 {[%clk 0:00:06]} 54. f6+ {[%clk 0:00:02]}  Kf7 {[%clk 0:00:06]} 55. Bh6 {[%clk 0:00:02]}  Kxf6 {[%clk 0:00:07]} 1/2-1/2


[Site "https://www.chess.com"]